Cogmind - Beta 16.1 @@@ ROGUE MODE // 2026.02.24 @ 06:40:23 Player: Busket Result: Destroyed by 4L-WGP(R) with Subdweller Beam Cannon Performance ------------- Evolutions (0) 0 Regions Visited (3) 600 Robots Destroyed (4) 20 Value Destroyed (100) 100 Prototype IDs (1) 20 Alien Tech Used (0) 0 Bonus (0) 0 TOTAL SCORE: 740 Bonus ------- None Cogmind --------- Core Integrity 0/250 Matter 280/300 Energy 100/100 System Corruption 0% Temperature Cool (9) Movement Core (250) Ox4 Location -10/Subcaves Parts ------- > --- POWER (1) -------- (None) > --- PROPULSION (2) --- (None) > --- UTILITY (2) ------ Small Storage Unit > --- WEAPON (2) ------- Subdweller Beam Cannon Battle Rifle > --- INVENTORY (8) ---- Ion Engine Medium Matter Pod (100) Medium Matter Pod (100) Scrap Shield Peak State ------------ > --- POWER ------------ Subdweller Power Source > --- PROPULSION ------- Aluminum Leg Aluminum Leg > --- UTILITY ---------- Small Storage Unit Experimental Sensor Array > --- WEAPON ----------- Beam Cannon Beam Cannon > --- INVENTORY -------- Ion Engine Subdweller Power Source Flight Unit Medium Matter Pod Medium Matter Pod Scrap Shield [Rating: 17] Favorites ----------- Power Ion Engine Engine Ion Engine Propulsion Aluminum Leg Treads Light Treads Leg Aluminum Leg Flight Unit Flight Unit Utility Small Storage Unit Device Experimental Sensor Array Storage Small Storage Unit Weapon Beam Cannon Energy Cannon Beam Cannon Ballistic Gun Light Assault Rifle Special Weapon Mining Laser Build | -11 -10 -10 -10 ------- Run | Yrd Mat Min Sub Slots Evolved . | . . . . Power . | . . . . Propulsion . | . . . . Utility . | . . . . Weapon . | . . . . Parts Attached 17 | 7 . 5 5 Power 3 | 1 . . 2 Engine 3 | 1 . . 2 Core . | . . . . Reactor . | . . . . Propulsion 4 | 3 . . 1 Treads 1 | 1 . . . Leg 2 | 2 . . . Wheel . | . . . . Hover . | . . . . Flight 1 | . . . 1 Utility 3 | 1 . 2 . Device 1 | . . 1 . Storage 2 | 1 . 1 . Processor . | . . . . Hackware . | . . . . Protection . | . . . . Artifact . | . . . . Weapon 7 | 2 . 3 2 Energy Gun . | . . . . Energy Cannon 3 | . . 2 1 Ballistic Gun 3 | 2 . . 1 Ballistic Cannon . | . . . . Launcher . | . . . . Special Weapon 1 | . . 1 . Impact Weapon . | . . . . Slashing Weapon . | . . . . Piercing Weapon . | . . . . Special Melee Weapon . | . . . . Unidentified Prototypes 1 | . . 1 . Parts Lost 8 | . . . 8 Power 2 | . . . 2 Propulsion 3 | . . . 3 Utility 1 | . . . 1 Weapon 2 | . . . 2 Highest Loss Streak 8 | . . . 8 To Critical Strikes 1 | . . . 1 Average Backups 4 | . 3 6 4 Power . | . . . . Propulsion . | . . . . Utility 1 | . . 2 2 Weapon 2 | . 2 3 . Tool/Special . | . . . . Unused Backups 5 | . . 2 3 Power . | . . . . Propulsion . | . . . . Utility 3 | . . . 3 Weapon 2 | . . 2 . Tool/Special . | . . . . Average Slot Usage (%) 85 | . 85 91 79 Engine 12 | . 14 14 10 Leg 24 | . 28 28 18 Device 6 | . . 6 11 Storage 14 | . 14 14 14 Energy Cannon 14 | . . 16 20 Ballistic Gun 7 | . 28 1 1 Special Weapon 4 | . . 10 . Peak Build Rating 17 | 6 6 15 17 Average Rating 9 | 3 6 10 12 On Entrance 6 | . 6 6 15 Avg Prop Armor Cover (%) . | . . . . Naked Turns . | . . . . Heaviest Build 17 | 12 12 17 17 Greatest Support 20 | 20 20 20 20 Greatest Overweight (x) 4 | 3 . . 4 Average Overweight (x) . | . . . . Largest Inventory Capacity 30 | 8 8 30 8 Average Capacity 7 | 7 8 8 8 Most Carried 8 | 3 8 8 7 Average Carried 5 | . 3 6 5 Final Capacity 8 | 8 8 8 8 Final Carried 8 | . 8 3 5 Class Distribution -------------------- 100% | Mutant Dominant Class ---------------- Mutant | -10/Materials Mutant | -10/Mines Mutant | -10/Subcaves Resources | -11 -10 -10 -10 ----------- Run | Yrd Mat Min Sub Matter Collected 570 | 244 36 126 164 Remotely . | . . . . Salvage Created 110 | . . 29 81 Parts 3 | . . 1 2 Haulers Intercepted . | . . . . Recyclers Shooed . | . . . . Parts Field Recycled . | . . . . Retrieved Matter . | . . . . Parts Self-Destructed . | . . . . Prevented . | . . . . Parts Restored . | . . . . Kills | -11 -10 -10 -10 ------- Run | Yrd Mat Min Sub Combat Hostiles Destroyed 4 | . . 2 2 Cannons 3 | . . 2 1 Classes Destroyed 2 | . . 1 1 Swarmer 2 | . . 2 . Subdweller 2 | . . . 2 Best Kill Streak 2 | . . 2 1 Combat Bots Only 2 | . . 2 1 Max Kills in Single Turn 1 | . . 1 1 Gunslinging . | . . . . Exploded . | . . . . Melee . | . . . . Uniques/NPCs Destroyed . | . . . . Combat | -11 -10 -10 -10 -------- Run | Yrd Mat Min Sub Hostile Shots Fired 52 | . . 14 38 Missed 10 | . . 3 7 Hits 42 | . . 11 31 Projectile 42 | . . 11 31 AOE 2 | . . . 2 Critical Strikes 1 | . . . 1 Damage Taken 929 | . . 84 845 Core 259 | . . . 259 Absorbed by Shields . | . . . . Core Remaining (%) 100 | 100 . . . Volleys Fired 37 | . . 28 9 Largest 2 | . . 1 2 Hottest 120 | . . 60 120 Shots Fired 44 | . . 28 16 Gun . | . . . . Cannon 44 | . . 28 16 Launcher . | . . . . Special . | . . . . Kinetic . | . . . . Thermal 44 | . . 28 16 Explosive . | . . . . Electromagnetic . | . . . . Robot Hit Streak 6 | . . 4 6 Robot Miss Streak 2 | . . 2 2 Penetration Max . | . . . . Secondary Targets . | . . . . Shots Hit Robots 17 | . . 6 11 Core Hits 4 | . . 1 3 Critical Kills 1 | . . . 1 Critical Parts Destroyed . | . . . . Critical Strikes 1 | . . . 1 Meltdown 1 | . . . 1 Melee Attacks . | . . . . Impact . | . . . . Slashing . | . . . . Piercing . | . . . . Sneak Attacks . | . . . . Combat Hostiles . | . . . . Follow-up Attacks . | . . . . Damage Inflicted 281 | . . 105 176 Guns . | . . . . Cannons 281 | . . 105 176 Explosions . | . . . . Melee . | . . . . Ramming . | . . . . Kinetic . | . . . . Thermal 281 | . . 105 176 Explosive . | . . . . Electromagnetic . | . . . . Impact . | . . . . Slashing . | . . . . Piercing . | . . . . Highest Corruption . | . . . . Average Corruption . | . . . . Corruption Purged . | . . . . Corruption Blocked . | . . . . Overload Shots . | . . . . Overflow Damage 12 | . . 12 . Projectiles 12 | . . 12 . Explosions . | . . . . Melee . | . . . . Knockbacks . | . . . . Impact . | . . . . Kinetic . | . . . . Secondary . | . . . . Self-Inflicted Damage . | . . . . Shots . | . . . . Rammed . | . . . . Targets Rammed . | . . . . Kicked . | . . . . Crushed . | . . . . Highest Temperature 288 | . . 288 36 Average Temperature 121 | . . 134 27 Received Heat Transfer 141 | . . . 141 Siege Activations . | . . . . Martial Activations . | . . . . Shielding Activations . | . . . . Robots Disrupted . | . . . . Combat Hostiles . | . . . . Robots Corrupted . | . . . . Combat Hostiles . | . . . . Parts Fried . | . . . . Impact Corruptions . | . . . . Robots Melted 1 | . . . 1 Combat Hostiles 1 | . . . 1 Parts Melted 4 | . . 1 3 Heat Transferred 592 | . . 222 370 Parts Sabotaged . | . . . . Parts Stolen . | . . . . Parts Stripped . | . . . . Power Chain Reactions . | . . . . Alert | -11 -10 -10 -10 ------- Run | Yrd Mat Min Sub Maximum Alert Level . | . . . . Low Security (%) 100 | 100 100 100 . Level 1 . | . . . . Level 2 . | . . . . Level 3 . | . . . . Level 4 . | . . . . Level 5 . | . . . . High Security . | . . . . Max Security . | . . . . Peak Influence 40 | . . 40 . Initial . | . . . . Average 3 | . . 5 . Influence Increases 50 | . . 50 . Destroy 0b10 Robot/C 40 | . . 40 . Destroy Leader 10 | . . 10 . Influence Decreases 50 | . . 50 . Time Decay 50 | . . 50 . Squads Dispatched . | . . . . Investigation . | . . . . Extermination . | . . . . Reinforcement . | . . . . Assault . | . . . . Garrison . | . . . . Intercept . | . . . . Searches Triggered . | . . . . Construction Impeded . | . . . . Haulers Reinforced . | . . . . Active Scanning Responses . | . . . . Cargo Convoy Interrupts . | . . . . Stealth | -11 -10 -10 -10 --------- Run | Yrd Mat Min Sub Distress Signals . | . . . . Communications Jammed . | . . . . Distress Signals . | . . . . Times Spotted 16 | . . 3 13 Peak Tracking Total 8 | . . 3 8 Tactical Retreats 1 | . . . 1 Traps | -11 -10 -10 -10 ------- Run | Yrd Mat Min Sub Traps Triggered 2 | . . . 2 Indirectly . | . . . . Trap Hack Attempts . | . . . . Triggered . | . . . . Disarmed . | . . . . Reprogrammed . | . . . . Reused . | . . . . Traps Extracted . | . . . . Installed . | . . . . Triggered . | . . . . Machines | -11 -10 -10 -10 ---------- Run | Yrd Mat Min Sub Machines Disabled . | . . . . Max in Single Turn . | . . . . Machines Repaired . | . . . . Machines Dismantled . | . . . . Machines Sabotaged . | . . . . Overloaded Fab Kills . | . . . . Hacking | -11 -10 -10 -10 --------- Run | Yrd Mat Min Sub Machines Accessed 1 | . 1 . . Terminals 1 | . 1 . . Fabricators . | . . . . Repair Stations . | . . . . Recycling Units . | . . . . Scanalyzers . | . . . . Garrison Access . | . . . . Total Hacks 1 | . 1 . . Successful . | . . . . Failed 1 | . 1 . . Catastrophic 1 | . 1 . . Database Lockouts . | . . . . Manual . | . . . . Terminals 1 | . 1 . . Fabricators . | . . . . Repair Stations . | . . . . Recycling Units . | . . . . Scanalyzers . | . . . . Garrison Access . | . . . . Terminal Hacks . | . . . . Fabricator Hacks . | . . . . Repair Station Hacks . | . . . . Recycling Unit Hacks . | . . . . Scanalyzer . | . . . . Garrison Access Hacks . | . . . . Unauthorized Hacks . | . . . . Terminals . | . . . . Fabricators . | . . . . Repair Stations . | . . . . Recycling Units . | . . . . Scanalyzers . | . . . . Garrison Access . | . . . . Data Cores Recovered . | . . . . Used . | . . . . Hacking Detections 1 | . 1 . . Full Trace Events . | . . . . Feedback Events . | . . . . Feedback Blocked . | . . . . Robot Schematics Acquired . | . . . . Robots Built . | . . . . Authchips . | . . . . Time . | . . . . Total Robot Build Rating . | . . . . Part Schematics Acquired . | . . . . Parts Built . | . . . . Authchips . | . . . . Time . | . . . . Total Part Build Rating . | . . . . Part Studies Acquired . | . . . . Parts Repaired . | . . . . Time . | . . . . Parts Recycled . | . . . . Recycled Matter . | . . . . Retrieved Matter . | . . . . Retrieved Components . | . . . . Parts Scanalyzed . | . . . . Part Schematics Acquired . | . . . . Parts Damaged . | . . . . Bothacking | -11 -10 -10 -10 ------------ Run | Yrd Mat Min Sub Used RIF Installer . | . . . . Robots Hacked . | . . . . Non-combat . | . . . . Combat . | . . . . Robot Hacks Applied . | . . . . Relay Couplers Released . | . . . . Fabnet Peak Effective % . | . . . . Robots Rewired . | . . . . Allies Hacked . | . . . . Hacks Repelled . | . . . . Allies | -11 -10 -10 -10 -------- Run | Yrd Mat Min Sub Total Allies . | . . . . Largest Group . | . . . . Highest-Rated Group . | . . . . Highest-Rated Ally . | . . . . Total Orders . | . . . . Ally Attacks . | . . . . Total Damage . | . . . . Kills . | . . . . Allies Corrupted . | . . . . Allies Melted . | . . . . Intel | -11 -10 -10 -10 ------- Run | Yrd Mat Min Sub Active Infowar (turns) 362 | . . 146 216 Sensors 362 | . . 146 216 Robot Analysis Total . | . . . . Derelict Logs Recovered 1 | . . . 1 Drone Launches . | . . . . Drone Recoveries . | . . . . Exploration | -11 -10 -10 -10 ------------- Run | Yrd Mat Min Sub Turns Passed 812 | 67 169 312 264 Spaces Moved 545 | 47 135 187 176 Core 68 | 24 . . 44 Treads . | . . . . Legs 469 | 23 135 187 124 Wheels . | . . . . Hover . | . . . . Flight 8 | . . . 8 Fastest Speed 50 | 50 120 120 100 Average Speed 121 | 106 120 120 129 Slowest Speed 280 | 200 120 120 280 Overloaded Moves . | . . . . Propulsion Burnouts . | . . . . Robots Hopped . | . . . . Potential Cave-ins . | . . . . Cave-ins Triggered . | . . . . Exploration Rate (%) 24 | 3 30 50 13 Regions Visited 3 Branch Regions 2 Pre-discovered Areas . | . . . . Known Exits Taken . | . . . . Unknown Exits Taken 3 | 1 1 1 . Scrap Searched . | . . . . Spaces Dug . | . . . . Terrain Destroyed . | . . . . Melee . | . . . . Projectile . | . . . . AOE . | . . . . Terrain Rammed . | . . . . Walls Destroyed . | . . . . Machines Disabled . | . . . . Actions | -11 -10 -10 -10 --------- Run | Yrd Mat Min Sub Total 659 | 66 142 255 196 Wait 8 | . . 8 . Move 542 | 46 134 186 176 Hop . | . . . . Pick Up 28 | 8 8 7 5 Fast Attach . | . . . . Attach 21 | 8 . 8 5 Detach 10 | 2 . 7 1 Swap . | . . . . Drop 13 | 2 . 11 . Fire 37 | . . 28 9 Melee . | . . . . Ram . | . . . . Kick . | . . . . Crush . | . . . . Escape Stasis . | . . . . Rewire . | . . . . Trap . | . . . . Miscellaneous . | . . . . Route ------- -11/Scrapyard -10/Materials -10/Mines -10/Subcaves History --------- Turn | Location | Event 2 | -11/Scrapyard | Met Revision 17 4 | -11/Scrapyard | Discovered new exit (range 16) 68 | -11/Scrapyard | Entered Materials 201 | -10/Materials | Discovered new exit (range 15) 237 | -10/Materials | Entered Mines 301 | -10/Mines | Build established: Mutant 377 | -10/Mines | Found a damaged Exp. Sensor Array with a note attached 382 | -10/Mines | Found Prototype Device 383 | -10/Mines | Identified Exp. Sensor Array 513 | -10/Mines | Discovered new exit (range 8) 549 | -10/Mines | Entered Subcaves 550 | -10/Subcaves | Approached by a straggling Scientist 571 | -10/Subcaves | Learned 2 Materials zone layouts 708 | -10/Subcaves | Ambushed by swarm of Subdwellers 746 | -10/Subcaves | Lost 4 allies 763 | -10/Subcaves | Core integrity fell below 50% 778 | -10/Subcaves | Core integrity fell below 20% 796 | -10/Subcaves | Lost 8 parts (2p3n1u2w) 813 | -10/Subcaves | Destroyed by 4L-WGP(R) with Subdweller Beam Cannon Last Messages --------------- 5O-DPC(R) affixes Scrap Shield Fragment to Scrap Shield. Aluminum Leg destroyed. EZ-PMO(R) destroyed. Critical hit (Destroy). Sub. Power Source destroyed. 6I-3GK(R): "ARGHSUB!" GS-0MG(R) affixes Scrap Shield Fragment to Scrap Shield. Aluminum Leg destroyed. 8Q-E1H(R) affixes Scrap Shield Fragment to Scrap Shield. 0Y-GQ4(R) affixes Scrap Shield Fragment to Scrap Shield. Beam Cannon destroyed. Flight Unit destroyed. Exp. Sensor Array destroyed. Sub. Power Source destroyed. Acquired Battle Rifle. Acquired Sub. Beam Cannon. Map ----- +----------------------------------------------------+ | ?????????????????????????????????????????????????? | | ?????????????????????????????????????????????????? | | ?????????????????????????????????????????????????? | | ?????????????????????????????????????????????????? | | ?????????????????????????????????????????????????? | | ?????????????????????????????????????????????????? | | ?????????????????????????????????????????????????? | | ?????????????????????????????????????????????????? | | ?????????????????????????????????????????????????? | | ?????????????????????????????????????????????????? | | ?????????????????????????????????????????????????? | | ?????????????????????????????????????????????????? | | ?????????????????????????????????????????????????? | | ?????????????????????????????????????????????????? | | ??????????????????????????????????????????? ???? | | ??????????????????????????????????????????? ? | | ???????????????????????? ????????????????? # | | ??????????????????????? ????????????????? | | ???????????????????????" ????###????????? | | ???????????????????????? ##### ###??????? | | ?????????????????????#??? ##????## | | ?????????????????????? ??? ##??## | | ??????????????????????# ???# #### | | ?????????????????????## ##### ## | | ????????????????????## # # | | ????????????????????# @ #? | | ????????????????????## #?? | | ?????????????????????# R #?????? | | ?????????????????????#### R ##????? | | ????????????????????????## ## #### #####? | | ?????????????????????????## ######??## ## | | ??????????????????????????## ###????????# # | | ???????????????????????????# ##??????????## ## | | ???????????????????????????###????????##### ##? | | ??????????????????????????????# ### #?? | | ??????????????????????????????# #?? | | ???????????????????????????????### ##? | | ?????????????????????????????????## "#? | | ??????????????????????????????????## ## | | ???????????????????????????????? ## # | | ??????????????????????????????? ?## # | | ??????????????????????????????? ??# # | | ??????????????????????????????? ### #?## # | | ??????????????????????????????? ???### ??# ## | | ???????????????????????????????? ??????###??## ## | | ????????????????????????????????????????????## # | | ????????????????????????????????????????????# ## | | ????????????????????????????????????????????# "#? | | ????????????????????????????????????????????# "#? | | ????????????????????????????????????????????### ## | +----------------------------------------------------+ Best States ------------- Heat Dissipation 25 Energy Generation 15 Energy Capacity 250 Matter Stores 300 Matter Capacity 300 Sight Range 16 Robot Scan Range 20 Terrain Scan Density 10 Evasion (%) 55 Item Schematics ----------------- None Robot Schematics ------------------ None Fabricated ------------ Nothing Repaired ---------- Nothing Studied --------- None Alien Tech Used ----------------- None Achievements -------------- You Again Challenges ------------ None Game ------ Seed IonicAssemblyStreamer Manual? 0 Play Time 00:25:01 Cumulative 1.3 hours Start 2026.02.24 @ 06:16:57 End 2026.02.24 @ 06:40:23 Sessions 1 Manual Loads 0 Difficulty Rogue Special Mode None Game No. 4 Rogue 4 Adventurer 0 Explorer 0 Win Type - Total 0 Types 0/0/0/0/0/0/0/0/0/0 Lore% 0 Gallery% 2 Achievement% 4 Wizard Run 0 Options --------- Layout 1 ASCII 0 Keyboard 1 Movement Numpad Keybinds 0 Fullscreen 2 Font 32/SmallcapsGlow Map View 50x35 Zoom Use 0% Tactical HUD 0 Map Filters NONE Filters NONE Steam 1 RUN: 1e0e3cd6-2fee-46cc-b66a-463f319f9a6f